lending/lending_fUSD_20250808
["ID","MTS","AMOUNT","RATE_DAILY","PERIOD"]
[378037817,1754674412240,-2100.0,0.00030136,5]
[378037818,1754674412249,-6006.0,0.00030136,5]
[378037819,1754674412258,-155.0,0.00030137,2]
[378037820,1754674412268,-331.78,0.00030137,2]
[378037821,1754674412278,-306.73799503,0.00030137,2]
[378037822,1754674412288,-200.0,0.00030137,5]
[378037823,1754674412296,-8107.13567962,0.00030137,120]
[378037824,1754674412306,-859.71833255,0.00030137,120]
[378037825,1754674412315,-828.68026071,0.00030137,120]
[378037826,1754674412324,-5817.0,0.00030137,120]
[378037827,1754674412333,-2110.0,0.00030137,2]
[378037828,1754674412342,-500.0,0.00030137,7]
[378037829,1754674412352,-2500.0,0.00030137,7]
[378037830,1754674412361,-4000.0,0.00030137,7]
[378037831,1754674412370,-500.0,0.00030137,7]
[378037832,1754674412380,-500.0,0.00030137,7]
[378037833,1754674412389,-217.35177233,0.00030137,7]
[378037834,1754674412398,-2500.0,0.00030137,7]
[378037835,1754674412407,-4000.0,0.00030137,7]
[378037836,1754674412416,-500.0,0.00030137,7]
[378037837,1754674412426,-2500.0,0.00030137,7]
[378037838,1754674412435,-500.0,0.00030137,7]
[378037839,1754674412445,-4000.0,0.00030137,7]
[378037840,1754674412454,-500.0,0.00030137,7]
[378037841,1754674412463,-500.0,0.00030137,7]
[378037842,1754674412471,-500.0,0.00030137,7]
[378037843,1754674412480,-2500.0,0.00030137,7]
[378037844,1754674412490,-4000.0,0.00030137,7]
[378037845,1754674412498,-500.0,0.00030137,7]
[378037846,1754674412507,-712.58876891,0.00030137,7]
[378037847,1754674412516,-500.0,0.00030137,7]
[378037848,1754674412526,-500.0,0.00030137,7]
[378037849,1754674412535,-810.0,0.00030137,7]
[378037850,1754674412544,-2500.0,0.00030137,7]
[378037851,1754674412554,-500.0,0.00030137,7]
[378037852,1754674412563,-500.0,0.00030137,7]
[378037853,1754674412572,-4000.0,0.00030137,7]
[378037854,1754674412581,-500.0,0.00030137,7]
[378037855,1754674412591,-2500.0,0.00030137,7]
[378037856,1754674412600,-500.0,0.00030137,7]
[378037857,1754674412610,-500.0,0.00030137,7]
[378037858,1754674412619,-4000.0,0.00030137,7]
[378037859,1754674412629,-2500.0,0.00030137,7]
[378037860,1754674412638,-500.0,0.00030137,7]
[378037861,1754674412647,-500.0,0.00030137,7]
[378037862,1754674412657,-4000.0,0.00030137,7]
[378037863,1754674412666,-2500.0,0.00030137,7]
[378037864,1754674412675,-500.0,0.00030137,7]
[378037865,1754674412684,-4000.0,0.00030137,7]
[378037866,1754674412693,-1300.0,0.00030137,7]
[378037867,1754674412702,-2500.0,0.00030137,7]
[378037868,1754674412711,-500.0,0.00030137,7]
[378037869,1754674412720,-1300.0,0.00030137,7]
[378037870,1754674412729,-2500.0,0.00030137,7]
[378037871,1754674412739,-500.0,0.00030137,7]
[378037872,1754674412748,-1300.0,0.00030137,7]
[378037873,1754674412757,-2500.0,0.00030137,7]
[378037874,1754674412766,-500.0,0.00030137,7]
[378037875,1754674412776,-1300.0,0.00030137,7]
[378037876,1754674412785,-500.0,0.00030137,7]
[378037877,1754674412794,-2500.0,0.00030137,7]
[378037878,1754674412803,-1300.0,0.00030137,7]
[378037879,1754674412812,-500.0,0.00030137,7]
[378037880,1754674412821,-1300.0,0.00030137,7]
[378037881,1754674412830,-500.0,0.00030137,7]
[378037882,1754674412839,-4000.0,0.00030137,7]
[378037883,1754674412851,-1300.0,0.00030137,7]
[378037884,1754674412861,-880.52168062,0.00030137,7]
[378037885,1754674412870,-2500.0,0.00030137,7]
[378037886,1754674412880,-4000.0,0.00030137,7]
[378037887,1754674412890,-1300.0,0.00030137,7]
[378037888,1754674412899,-150.10656889,0.00030137,7]
[378037889,1754674412909,-501.46393263,0.00030137,7]
[378037890,1754674412918,-2200.0,0.00030137,7]
[378037891,1754674412928,-1300.0,0.00030137,7]
[378037892,1754674412937,-162.40574522,0.00030137,7]
[378037893,1754674412947,-500.0,0.00030137,7]
[378037894,1754674412957,-2200.0,0.00030137,7]
[378037895,1754674412967,-1300.0,0.00030137,7]
[378037896,1754674412977,-2500.0,0.00030137,7]
[378037897,1754674412986,-500.0,0.00030137,7]
[378037898,1754674412995,-500.7,0.00030137,7]
[378037899,1754674413004,-2500.0,0.00030137,7]
[378037900,1754674413014,-2200.0,0.00030137,7]
[378037901,1754674413022,-1300.0,0.00030137,7]
[378037902,1754674413033,-273.64003979,0.00030137,7]
[378037903,1754674413042,-4000.0,0.00030137,7]
[378037904,1754674413051,-1300.0,0.00030137,7]
[378037905,1754674413061,-2200.0,0.00030137,7]
[378037906,1754674413070,-2500.0,0.00030137,7]
[378037907,1754674413079,-7200.0,0.00030137,7]
[378037908,1754674413088,-1300.0,0.00030137,7]
[378037909,1754674413097,-2200.0,0.00030137,7]
[378037910,1754674413111,-2500.0,0.00030137,7]
[378037911,1754674413121,-4000.0,0.00030137,7]
[378037912,1754674413130,-7200.0,0.00030137,7]
[378037913,1754674413139,-1300.0,0.00030137,7]
[378037914,1754674413149,-2200.0,0.00030137,7]
[378037915,1754674413158,-4000.0,0.00030137,7]
[378037916,1754674413167,-7200.0,0.00030137,7]
[378037917,1754674413176,-2500.0,0.00030137,7]
[378037918,1754674413185,-1300.0,0.00030137,7]
[378037919,1754674413195,-2200.0,0.00030137,7]
[378037920,1754674413203,-4000.0,0.00030137,7]
[378037921,1754674413213,-7200.0,0.00030137,7]
[378037922,1754674413222,-1300.0,0.00030137,7]
[378037923,1754674413231,-2200.0,0.00030137,7]
[378037924,1754674413240,-4000.0,0.00030137,7]
[378037925,1754674413249,-7200.0,0.00030137,7]
[378037926,1754674413258,-1300.0,0.00030137,7]
[378037927,1754674413268,-2200.0,0.00030137,7]
[378037928,1754674413279,-4000.0,0.00030137,7]
[378037929,1754674413289,-2500.0,0.00030137,7]
[378037930,1754674413298,-7200.0,0.00030137,7]
[378037931,1754674413308,-500.0,0.00030137,7]
[378037932,1754674413317,-1300.0,0.00030137,7]
[378037933,1754674413326,-2200.0,0.00030137,7]
[378037934,1754674413335,-2500.0,0.00030137,7]
[378037935,1754674413345,-4000.0,0.00030137,7]
[378037936,1754674413354,-7200.0,0.00030137,7]
[378037937,1754674413363,-1300.0,0.00030137,7]
[378037938,1754674413372,-1300.0,0.00030137,7]
[378037939,1754674413381,-165.9791279,0.00030137,7]
[378037940,1754674413391,-2200.0,0.00030137,7]
[378037941,1754674413400,-2500.0,0.00030137,7]
[378037942,1754674413410,-4000.0,0.00030137,7]
[378037943,1754674413419,-7200.0,0.00030137,7]
[378037944,1754674413429,-500.0,0.00030137,7]
[378037945,1754674413438,-1300.0,0.00030137,7]
[378037946,1754674413447,-1300.0,0.00030137,7]
[378037947,1754674413457,-2200.0,0.00030137,7]
[378037948,1754674413466,-2500.0,0.00030137,7]
[378037949,1754674413476,-4000.0,0.00030137,7]
[378037950,1754674413485,-516.02124792,0.00030137,7]
[378037951,1754674413495,-7200.0,0.00030137,7]
[378037952,1754674413505,-500.0,0.00030137,7]
[378037953,1754674413514,-1300.0,0.00030137,7]
[378037954,1754674413523,-500.0,0.00030137,7]
[378037955,1754674413534,-2200.0,0.00030137,7]
[378037956,1754674413543,-1300.0,0.00030137,7]
[378037957,1754674413553,-2500.0,0.00030137,7]
[378037958,1754674413562,-4000.0,0.00030137,7]
[378037959,1754674413571,-7200.0,0.00030137,7]
[378037960,1754674413581,-578.59758929,0.00030137,7]
[378037961,1754674413591,-1300.0,0.00030137,7]
[378037962,1754674413601,-500.0,0.00030137,7]
[378037963,1754674413611,-1300.0,0.00030137,7]
[378037964,1754674413621,-2500.0,0.00030137,7]
[378037965,1754674413631,-995.90799764,0.00030137,7]
[378037966,1754674413643,-2200.0,0.00030137,7]
[378037967,1754674413656,-4000.0,0.00030137,7]
[378037968,1754674413667,-7200.0,0.00030137,7]
[378037969,1754674413682,-178.71097775,0.00030137,7]
[378037970,1754674413697,-1300.0,0.00030137,7]
[378037971,1754674413707,-1300.0,0.00030137,7]
[378037972,1754674413717,-2500.0,0.00030137,7]
[378037973,1754674413727,-2200.0,0.00030137,7]
[378037974,1754674413736,-4000.0,0.00030137,7]
[378037975,1754674413746,-500.0,0.00030137,7]
[378037976,1754674413755,-7200.0,0.00030137,7]
[378037977,1754674413765,-1300.0,0.00030137,7]
[378037978,1754674413774,-1300.0,0.00030137,7]
[378037979,1754674413783,-2500.0,0.00030137,7]
[378037980,1754674413792,-4000.0,0.00030137,7]
[378037981,1754674413802,-2200.0,0.00030137,7]
[378037982,1754674413811,-7200.0,0.00030137,7]
[378037983,1754674413820,-1300.0,0.00030137,7]
[378037984,1754674413830,-1300.0,0.00030137,7]
[378037985,1754674413839,-2500.0,0.00030137,7]
[378037986,1754674413849,-2200.0,0.00030137,7]
[378037987,1754674413859,-4000.0,0.00030137,7]
[378037988,1754674413869,-7200.0,0.00030137,7]
[378037989,1754674413878,-1000.0,0.00030137,7]
[378037990,1754674413888,-1300.0,0.00030137,7]
[378037991,1754674413897,-1300.0,0.00030137,7]
[378037992,1754674413907,-500.0,0.00030137,7]
[378037993,1754674413917,-500.0,0.00030137,7]
[378037994,1754674413927,-4000.0,0.00030137,7]
[378037995,1754674413938,-2200.0,0.00030137,7]
[378037996,1754674413948,-1000.0,0.00030137,7]
[378037997,1754674413957,-7200.0,0.00030137,7]
[378037998,1754674413967,-2457.66068312,0.00030137,7]
[378037999,1754674413977,-1300.0,0.00030137,7]
[378038000,1754674413986,-2200.0,0.00030137,7]
[378038001,1754674413995,-4000.0,0.00030137,7]
[378038002,1754674414005,-2500.0,0.00030137,7]
[378038003,1754674414014,-7200.0,0.00030137,7]
[378038004,1754674414023,-1300.0,0.00030137,7]
[378038005,1754674414033,-805.87812756,0.00030137,7]
[378038006,1754674414043,-4000.0,0.00030137,7]
[378038007,1754674414052,-2200.0,0.00030137,7]
[378038008,1754674414061,-3928.97072764,0.00030137,7]
[378038009,1754674414071,-1000.0,0.00030137,7]
[378038010,1754674414080,-7200.0,0.00030137,7]
[378038011,1754674414090,-1300.0,0.00030137,7]
[378038012,1754674414099,-2200.0,0.00030137,7]
[378038013,1754674414111,-4000.0,0.00030137,7]
[378038014,1754674414121,-1000.0,0.00030137,7]
[378038015,1754674414131,-1300.0,0.00030137,7]
[378038016,1754674414140,-7200.0,0.00030137,7]
[378038017,1754674414150,-2200.0,0.00030137,7]
[378038018,1754674414159,-6335.45475511,0.00030137,7]
[378038019,1754674414169,-1000.0,0.00030137,7]
[378038020,1754674414179,-1300.0,0.00030137,7]
[378038021,1754674414188,-7200.0,0.00030137,7]
[378038022,1754674414197,-1000.0,0.00030137,7]
[378038023,1754674414206,-1300.0,0.00030137,7]
[378038024,1754674414216,-7200.0,0.00030137,7]
[378038025,1754674414225,-2200.0,0.00030137,7]
[378038026,1754674414234,-1000.0,0.00030137,7]
[378038027,1754674414243,-1300.0,0.00030137,7]
[378038028,1754674414253,-7200.0,0.00030137,7]
[378038029,1754674414262,-2200.0,0.00030137,7]
[378038030,1754674414274,-7200.0,0.00030137,7]
[378038031,1754674414284,-1000.0,0.00030137,7]
[378038032,1754674414293,-1300.0,0.00030137,7]
[378038033,1754674414302,-1000.0,0.00030137,7]
[378038034,1754674414311,-7200.0,0.00030137,7]
[378038035,1754674414321,-1300.0,0.00030137,7]
[378038036,1754674414331,-500.0,0.00030137,7]
[378038037,1754674414342,-500.0,0.00030137,7]
[378038038,1754674414352,-7200.0,0.00030137,7]
[378038039,1754674414361,-1300.0,0.00030137,7]
[378038040,1754674414371,-500.0,0.00030137,7]
[378038041,1754674414380,-500.0,0.00030137,7]
[378038042,1754674414390,-7200.0,0.00030137,7]
[378038043,1754674414399,-1300.0,0.00030137,7]
[378038044,1754674414409,-1000.0,0.00030137,7]
[378038045,1754674414418,-500.0,0.00030137,7]
[378038046,1754674414427,-7200.0,0.00030137,7]
[378038047,1754674414437,-1300.0,0.00030137,7]
[378038048,1754674414446,-1000.0,0.00030137,7]
[378038049,1754674414457,-500.0,0.00030137,7]
[378038050,1754674414466,-7200.0,0.00030137,7]
[378038051,1754674414475,-1300.0,0.00030137,7]
[378038052,1754674414485,-500.0,0.00030137,7]
[378038053,1754674414494,-1000.0,0.00030137,7]
[378038054,1754674414503,-700.0,0.00030137,7]
[378038055,1754674414512,-7200.0,0.00030137,7]
[378038056,1754674414522,-1300.0,0.00030137,7]
[378038057,1754674414532,-1000.0,0.00030137,7]
[378038058,1754674414541,-500.0,0.00030137,7]
[378038059,1754674414551,-700.0,0.00030137,7]
[378038060,1754674414560,-14200.0,0.00030137,7]
[378038061,1754674414570,-1300.0,0.00030137,7]
[378038062,1754674414580,-500.0,0.00030137,7]
[378038063,1754674414590,-1000.0,0.00030137,7]
[378038064,1754674414600,-700.0,0.00030137,7]
[378038065,1754674414609,-1300.0,0.00030137,7]
[378038066,1754674414618,-500.0,0.00030137,7]
[378038067,1754674414627,-1000.0,0.00030137,7]
[378038068,1754674414636,-700.0,0.00030137,7]
[378038069,1754674414645,-1300.0,0.00030137,7]
[378038070,1754674414655,-1000.0,0.00030137,7]
[378038071,1754674414665,-500.0,0.00030137,7]
[378038072,1754674414674,-700.0,0.00030137,7]
[378038073,1754674414683,-1300.0,0.00030137,7]
[378038074,1754674414692,-1000.0,0.00030137,7]
[378038075,1754674414702,-500.0,0.00030137,7]
[378038076,1754674414711,-1000.0,0.00030137,7]
[378038077,1754674414722,-958.67749313,0.00030137,7]
[378038078,1754674414731,-500.0,0.00030137,7]
[378038079,1754674414741,-1300.0,0.00030137,7]
[378038080,1754674414750,-1000.0,0.00030137,7]
[378038081,1754674414760,-500.0,0.00030137,7]
[378038082,1754674414769,-1300.0,0.00030137,7]
[378038083,1754674414780,-1000.0,0.00030137,7]
[378038084,1754674414907,-500.0,0.00030137,7]
[378038085,1754674414917,-2262.83822344,0.00030137,7]
[378038086,1754674414927,-1000.0,0.00030137,7]
[378038087,1754674414937,-500.0,0.00030137,7]
[378038088,1754674414949,-2200.0,0.00030137,7]
[378038089,1754674414958,-700.0,0.00030137,7]
[378038090,1754674414968,-1000.0,0.00030137,7]
[378038091,1754674414978,-500.0,0.00030137,7]
[378038092,1754674414987,-2200.0,0.00030137,7]
[378038093,1754674414996,-700.0,0.00030137,7]
[378038094,1754674415006,-1000.0,0.00030137,7]
[378038095,1754674415015,-500.0,0.00030137,7]
[378038096,1754674415026,-700.0,0.00030137,7]
[378038097,1754674415036,-2200.0,0.00030137,7]
[378038098,1754674415045,-500.0,0.00030137,7]
[378038099,1754674415055,-700.0,0.00030137,7]
[378038100,1754674415066,-4222.20410429,0.00030137,7]
[378038101,1754674415075,-500.0,0.00030137,7]
[378038102,1754674415085,-1000.0,0.00030137,7]
[378038103,1754674415095,-700.0,0.00030137,7]
[378038104,1754674415107,-500.0,0.00030137,7]
[378038105,1754674415120,-1000.0,0.00030137,7]
[378038106,1754674415129,-700.0,0.00030137,7]
[378038107,1754674415139,-1000.0,0.00030137,7]
[378038108,1754674415150,-1000.0,0.00030137,7]
[378038109,1754674415159,-700.0,0.00030137,7]
[378038110,1754674415169,-1000.0,0.00030137,7]
[378038111,1754674415179,-700.0,0.00030137,7]
[378038112,1754674415189,-1012.80731931,0.00030137,7]
[378038113,1754674415198,-700.0,0.00030137,7]
[378038114,1754674415207,-700.0,0.00030137,7]
[378038115,1754674415217,-700.0,0.00030137,7]
[378038116,1754674415226,-700.0,0.00030137,7]
[378038117,1754674415235,-500.0,0.00030137,7]
[378038118,1754674415245,-700.0,0.00030137,7]
[378038119,1754674415255,-500.0,0.00030137,7]
[378038120,1754674415264,-700.0,0.00030137,7]
[378038121,1754674415274,-500.0,0.00030137,7]
[378038122,1754674415284,-500.0,0.00030137,7]
[378038123,1754674415293,-500.0,0.00030137,7]
[378038124,1754674415303,-700.0,0.00030137,7]
[378038125,1754674415313,-500.0,0.00030137,7]
[378038126,1754674415323,-700.0,0.00030137,7]
[378038127,1754674415333,-500.0,0.00030137,7]
[378038128,1754674415344,-700.0,0.00030137,7]
[378038129,1754674415354,-500.0,0.00030137,7]
[378038130,1754674415364,-700.0,0.00030137,7]
[378038131,1754674415375,-500.0,0.00030137,7]
[378038132,1754674415385,-700.0,0.00030137,7]
[378038133,1754674415396,-500.0,0.00030137,7]
[378038134,1754674415407,-700.0,0.00030137,7]
[378038135,1754674415417,-700.0,0.00030137,7]
[378038136,1754674415426,-637.90289527,0.00030137,7]
[378038137,1754674415436,-700.0,0.00030137,7]
[378038138,1754674415447,-1020.66729024,0.00030137,7]
[378038139,1754674415457,-776.71,0.00030137,30]
[378038140,1754674415467,-2000.0,0.00030147,120]
[378038141,1754674415477,-152.0,0.00030221,3]
[378038142,1754674415487,-999.07803532,0.000305,2]
[378038143,1754674415496,-370.91026638,0.00030591,2]
[378038144,1754674415506,-1020.52,0.00030637,2]
[378038145,1754674415516,-1000.0,0.00030685,120]
[378038146,1754674415525,-1100.0,0.00030686,7]
[378038147,1754674415535,-315.37,0.00030695,2]
[378038148,1754674415545,-9024.98,0.000307,7]
[378038149,1754674415555,-2258.0,0.00030776,2]
[378038150,1754674415565,-868.16920951,0.00030807,2]
[378038151,1754674415575,-156.88,0.00030822,80]
[378038152,1754674415584,-180.21250489,0.0003085,7]
[378038153,1754674415594,-1252.0,0.00030889,2]
[378038154,1754674415604,-4142.0,0.00030889,2]
[378038155,1754674415613,-900.0,0.0003096,7]
[378038156,1754674415623,-5082.71960739,0.00031,120]
[378038157,1754674415632,-333.03130012,0.00031,5]
[378038158,1754674415642,-200.0,0.00031,2]
[378038159,1754674415652,-35606.84126255,0.00031,30]
[378038160,1754674415661,-160.0,0.00031,120]
[378038161,1754674415671,-842.44706758,0.00031,120]
[378038162,1754674415681,-453.0,0.00031,14]
[378038163,1754674415691,-1056.99999989,0.00031,2]
[378038164,1754674415702,-211.62674257,0.00031,120]
[378038165,1754674415711,-152.0,0.00031014,4]
[378038166,1754674415722,-453.0,0.00031088,14]
[378038167,1754674415732,-959.0,0.00031126,2]
[378038168,1754674415741,-1653.0,0.00031126,2]
[378038169,1754674415752,-892.0,0.00031126,2]
[378038170,1754674415763,-1171.0,0.00031126,2]
[378038171,1754674415772,-810.0,0.00031126,2]
[378038172,1754674415783,-1000.0,0.00031233,120]
[378038173,1754674415792,-453.0,0.00031362,14]
[378038174,1754674415802,-19191.12814176,0.0003143,4]
[378038175,1754674415811,-192.99582891,0.000315,2]
[378038176,1754674415820,-150.0,0.000315,2]
[378038177,1754674415830,-200.0,0.000315,120]
[378038178,1754674415839,-200.0,0.000315,120]
[378038179,1754674415848,-9035.0,0.00031523,3]
[378038180,1754674415858,-519.0,0.00031535,21]
[378038181,1754674415867,-302.86119749,0.00031556,60]
[378038182,1754674415877,-453.0,0.00031636,14]
[378038183,1754674415887,-1000.0,0.00031781,120]
[378038184,1754674415897,-152.0,0.00031808,5]
[378038185,1754674415907,-453.0,0.0003191,14]
[378038186,1754674415916,-1444.0,0.00031945,120]
[378038187,1754674415926,-384.63394623,0.0003196,2]
[378038188,1754674415936,-10116.28437885,0.00032,5]
[378038189,1754674415946,-211.0,0.00032,120]
[378038190,1754674415957,-200.0,0.00032,2]
[378038191,1754674415968,-14827.74928327,0.00032,3]
[378038192,1754674415978,-1575.0,0.00032,120]
[378038193,1754674415988,-750.0,0.00032,8]
[378038194,1754674415998,-2059.59,0.00032,32]
[378038195,1754674416008,-1000.0,0.00032124,2]
[378038196,1754674416017,-500.0,0.00032125,2]
[378038197,1754674416027,-873.8,0.00032179,30]
[378038198,1754674416037,-776.71,0.00032179,30]
[378038199,1754674416047,-315.37,0.00032258,2]
[378038200,1754674416056,-872.92585182,0.000323,2]
[378038201,1754674416065,-1609.14,0.00032328,17]
[378038202,1754674416074,-1000.0,0.00032329,120]
[378038203,1754674416083,-1100.0,0.0003233,7]
[378038204,1754674416093,-453.0,0.00032355,14]
[378038205,1754674416103,-2321.64133604,0.00032443,2]
[378038206,1754674416113,-2321.64133604,0.00032443,2]
[378038207,1754674416122,-2321.64133604,0.00032443,2]
[378038208,1754674416132,-327.524,0.000325,7]
[378038209,1754674416142,-327.525,0.000325,7]
[378038210,1754674416151,-327.525,0.000325,7]
[378038211,1754674416160,-327.525,0.000325,7]
[378038212,1754674416169,-327.525,0.000325,7]
[378038213,1754674416181,-242.58780873,0.00032518,18]
[378038214,1754674416191,-152.0,0.00032601,6]
[378038215,1754674416201,-900.0,0.00032604,7]
[378038216,1754674416212,-2000.0,0.00032748,30]
[378038217,1754674416223,-2395.82533645,0.00032787,2]
[378038218,1754674416232,-4711.94211946,0.000328,2]
[378038219,1754674416243,-200.0,0.00032874,2]
[378038220,1754674416253,-1109.4718645,0.00032876,30]
[378038221,1754674416263,-400.0,0.00032876,2]
[378038222,1754674416272,-400.0,0.00032876,2]
[378038223,1754674416282,-400.0,0.00032876,2]
[378038224,1754674416291,-400.0,0.00032876,2]
[378038225,1754674416302,-400.0,0.00032876,2]
[378038226,1754674416311,-407.7125077,0.00032876,2]
[378038227,1754674416320,-506.84,0.00032876,120]
[378038228,1754674416329,-506.84,0.00032876,120]
[378038229,1754674416340,-506.84,0.00032876,120]
[378038230,1754674416349,-506.84,0.00032876,120]
[378038231,1754674416359,-506.84,0.00032876,120]
[378038232,1754674416369,-506.84,0.00032876,120]
[378038233,1754674416378,-506.84,0.00032876,120]
[378038234,1754674416388,-506.84,0.00032876,120]
[378038235,1754674416397,-506.84,0.00032876,120]
[378038236,1754674416406,-506.84,0.00032876,120]
[378038237,1754674416416,-506.84,0.00032876,120]
[378038238,1754674416426,-506.84,0.00032876,120]
[378038239,1754674416435,-506.84,0.00032876,120]
[378038240,1754674416445,-506.84,0.00032876,120]
[378038241,1754674416455,-506.84,0.00032876,120]
[378038242,1754674416464,-506.84,0.00032876,120]
[378038243,1754674416474,-506.84,0.00032876,120]
[378038244,1754674416483,-506.84,0.00032876,120]
[378038245,1754674416493,-506.84,0.00032876,120]
[378038246,1754674416504,-506.84,0.00032876,120]
[378038247,1754674416513,-506.84,0.00032876,120]
[378038248,1754674416522,-506.84,0.00032876,120]
[378038249,1754674416532,-506.84,0.00032876,120]
[378038250,1754674416541,-506.89702052,0.00032876,120]
[378038251,1754674416550,-540.07705248,0.00032876,120]
[378038252,1754674416559,-415.87697602,0.00032876,2]
[378038253,1754674416569,-458.4839973,0.00032876,2]
[378038254,1754674416580,-392.98939008,0.00032876,2]
[378038255,1754674416591,-453.74809434,0.00032876,2]
[378038256,1754674416601,-452.60298223,0.00032876,2]
[378038257,1754674416610,-336.13,0.00032877,2]
[378038258,1754674416619,-250.0,0.00032877,3]
[378038259,1754674416628,-1000.0,0.00032877,120]
[378038260,1754674416637,-487.0,0.00032877,2]
[378038261,1754674416646,-59998.82,0.000329,14]
[378038262,1754674416655,-2462.53,0.000329,30]
[378038263,1754674416664,-33873.37,0.000329,2]
[378038264,1754674416674,-5509.39,0.000329,14]
[378038265,1754674416683,-2000.0,0.000329,2]
[378038266,1754674416697,-500.0,0.000329,5]
[378038267,1754674416706,-5465.68,0.00032904,30]
[378038268,1754674416716,-154.96074968,0.00033,120]
[378038269,1754674416725,-4609.14134901,0.00033,2]
[378038270,1754674416735,-3363.41273057,0.00033,5]
[378038271,1754674416745,-464.52,0.00033,120]
[378038272,1754674416755,-199.99999801,0.00033,120]
[378038273,1754674416766,-535.834817,0.00033,14]
[378038274,1754674416775,-24196.78624116,0.00033,2]
[378038275,1754674416786,-218.89387653,0.000331,2]
[378038276,1754674416795,-487.0,0.00033151,2]
[378038277,1754674416805,-181.85,0.00033165,2]
[378038278,1754674416815,-398.86540225,0.00033329,2]
[378038279,1754674416824,-152.0,0.00033395,7]
[378038280,1754674416833,-487.0,0.00033425,2]
[378038281,1754674416843,-1000.0,0.00033425,120]
[378038282,1754674416852,-20115.9110235,0.0003347,2]
[378038283,1754674416862,-100278.82079901,0.000335,2]
[378038284,1754674416871,-1182.83644044,0.000335,2]
[378038285,1754674416880,-3162.0,0.00033571,2]
[378038286,1754674416889,-487.0,0.00033699,2]
[378038287,1754674416898,-215.17707128,0.00033753,2]
[378038288,1754674416908,-315.37,0.00033821,2]
[378038289,1754674416917,-1252.0,0.00033889,2]
[378038290,1754674416926,-4142.0,0.00033889,2]
[378038291,1754674416935,-1000.0,0.000339,14]
[378038292,1754674416945,-1000.0,0.000339,14]
[378038293,1754674416954,-1000.0,0.000339,14]
[378038294,1754674416963,-1000.0,0.000339,14]
[378038295,1754674416973,-1000.0,0.000339,14]
[378038296,1754674416982,-1000.0,0.000339,14]
[378038297,1754674416992,-967.75538401,0.000339,14]
[378038298,1754674417001,-1000.0,0.000339,30]
[378038299,1754674417011,-1000.0,0.000339,30]
[378038300,1754674417332,-1000.0,0.000339,30]
[378038301,1754674417342,-1000.0,0.000339,30]
[378038302,1754674417351,-1000.0,0.000339,30]
[378038303,1754674417360,-154.31662499,0.00033939,60]
[378038304,1754674417370,-367.68635681,0.00033939,60]
[378038305,1754674417379,-500.0,0.00033972,5]
[378038306,1754674417388,-453.0,0.00033972,30]
[378038307,1754674417397,-453.0,0.00033972,30]
[378038308,1754674417406,-487.0,0.00033973,2]
[378038309,1754674417416,-1000.0,0.00033973,120]
[378038310,1754674417427,-1100.0,0.00033974,7]
[378038311,1754674417436,-1082.39234527,0.00034,2]
[378038312,1754674417446,-150.51590322,0.00034,30]
[378038313,1754674417456,-2299.99999802,0.00034,2]
[378038314,1754674417466,-338.4,0.00034,9]
[378038315,1754674417475,-338.4,0.00034,9]
[378038316,1754674417486,-200.0,0.00034,120]